bitfinex-derivatives/quotes_BTCF0:USTF0_20250424
["timestamp","ask_amount","ask_price","bid_price","bid_amount"]
[1745503650094,0.0536296,93203.0,93202.0,0.107259]
[1745503650300,0.1475296,93203.0,93202.0,0.107259]
[1745503650899,0.1072606,93201.0,93200.0,0.2023614]
[1745503651196,0.1072606,93201.0,93183.0,0.0848]
[1745503651197,0.2145569,93189.0,93188.0,0.1072715]
[1745503651497,0.1072767,93189.0,93188.0,0.1072715]
[1745503651799,0.2145395,93198.0,93197.0,0.1072629]
[1745503652200,0.0536326,93198.0,93197.0,0.1072629]
[1745503652397,0.0536253,93210.0,93197.0,0.3608]
[1745503652595,0.1072523,93210.0,93209.0,0.1072514]
[1745503653192,0.0536253,93210.0,93209.0,0.1072514]
[1745503653703,0.16258057,93210.0,93209.0,0.1072514]
[1745503654294,0.1072514,93209.0,93208.0,0.085]
[1745503654493,0.1907514,93209.0,93208.0,0.1922525]
[1745503655595,0.6907514,93209.0,93208.0,0.1922525]
[1745503657597,0.6072514,93209.0,93208.0,0.1922525]
[1745503658001,0.1932514,93209.0,93208.0,0.085]
[1745503658201,0.2835514,93209.0,93208.0,0.085]
[1745503658399,0.1072629,93199.0,93196.0,0.0536326]
[1745503658604,0.0536308,93201.0,93200.0,0.1072618]
[1745503658605,0.4680618,93201.0,93200.0,0.1072618]
[1745503658906,0.1072564,93205.0,93204.0,0.1072571]
[1745503659608,0.1072618,93201.0,93200.0,0.1072609]
[1745503659797,0.1072618,93201.0,93200.0,0.1919609]
[1745503661095,0.6072618,93201.0,93200.0,0.1919609]
[1745503661298,0.0536309,93200.0,93189.0,0.0907]
[1745503661506,0.1072825,93183.0,93182.0,0.1072755]
[1745503662006,0.1072825,93182.0,93181.0,0.4680835]
[1745503662707,0.1072836,93181.0,93180.0,0.0889]
[1745503662998,0.1961836,93181.0,93180.0,0.0889]
[1745503663200,0.1961836,93181.0,93180.0,0.1961848]
[1745503663603,0.1961836,93181.0,93180.0,0.0889]
[1745503664810,0.1961836,93181.0,93180.0,0.1961848]
[1745503665104,0.1961836,93181.0,93180.0,0.0889]
[1745503665708,0.1961836,93181.0,93180.0,0.1961848]
[1745503665904,0.1072859,93179.0,93178.0,0.0854]
[1745503666209,0.1072882,93177.0,93176.0,0.10836263]
[1745503666407,0.4680882,93177.0,93176.0,0.00107323]
[1745503666922,0.5571882,93177.0,93176.0,0.00107323]
[1745503668306,1.0571882,93177.0,93176.0,0.00107323]
[1745503668614,0.9680882,93177.0,93176.0,0.00107323]
[1745503668814,0.6072882,93177.0,93176.0,0.10836263]
[1745503669715,0.1072882,93177.0,93176.0,0.10836263]
[1745503670116,0.1926882,93177.0,93176.0,0.10836263]
[1745503671213,0.1072882,93177.0,93176.0,0.10836263]
[1745503672905,0.08174244,93181.0,93180.0,0.1072848]
[1745503673105,0.10895527,93188.0,93187.0,0.1072767]
[1745503674019,0.21623087,93188.0,93187.0,0.1072767]
[1745503674521,0.21623087,93188.0,93187.0,0.2792767]
[1745503675114,0.21623087,93188.0,93187.0,0.1072767]
[1745503675318,0.1072756,93188.0,93187.0,0.1072767]
[1745503677918,0.0536355,93192.0,93186.0,0.0856]
[1745503678224,0.0536297,93203.0,93199.0,0.1072629]
[1745503678414,0.21782759,93200.0,93199.0,0.1072629]
[1745503678611,0.11056579,93200.0,93199.0,0.1072629]
[1745503679016,0.21782759,93200.0,93199.0,0.1072629]
[1745503679322,0.11056579,93200.0,93199.0,0.1072629]
[1745503679522,0.00161052,93200.0,93199.0,0.1072629]
[1745503680215,0.00161052,93200.0,93199.0,0.2792629]
[1745503683423,0.10887232,93200.0,93199.0,0.2792629]
[1745503684227,0.10887232,93200.0,93199.0,0.1072629]
[1745503684830,0.0536338,93195.0,93184.0,0.0536397]
[1745503685018,0.107279,93185.0,93184.0,0.0536397]
[1745503685719,0.107279,93185.0,93184.0,0.2342397]
[1745503686218,0.0536388,93187.0,93186.0,0.1072779]
[1745503686416,0.1609092,93192.0,93191.0,0.1072721]
[1745503686626,0.0536359,93192.0,93191.0,0.1072721]
[1745503689629,0.1072744,93190.0,93189.0,0.1072735]
[1745503689933,0.4680744,93190.0,93189.0,0.1072735]
[1745503690226,0.5601744,93190.0,93189.0,0.1072735]
[1745503690427,0.1992744,93190.0,93189.0,0.1072735]
[1745503691325,0.0536332,93198.0,93197.0,0.0536321]
[1745503691526,0.0536254,93210.0,93197.0,0.0536321]
[1745503691732,0.092,93207.0,93199.0,0.1072629]
[1745503691922,0.1456269,93207.0,93199.0,0.1072629]
[1745503692124,0.053614,93230.0,93199.0,0.1072629]
[1745503692424,0.13619409,93212.0,93211.0,0.1072491]
[1745503692627,0.13619409,93212.0,93211.0,0.4680491]
[1745503693122,0.13619409,93212.0,93211.0,0.6400491]
[1745503693719,0.13619409,93212.0,93211.0,0.64793177]
[1745503695524,0.05442154,93212.0,93211.0,1.00521577]
[1745503695831,0.16322028,93221.0,93220.0,0.1072387]
[1745503695832,0.00173962,93221.0,93220.0,0.1072387]
[1745503696031,0.00106,93237.0,93236.0,0.1072203]
[1745503696232,0.0881,93255.0,93244.0,0.1072111]
[1745503696425,0.0052,93256.0,93244.0,0.4680111]
[1745503696625,0.16855258,93256.0,93244.0,0.5752551]
[1745503697024,0.27575008,93256.0,93244.0,0.5752551]
[1745503697219,1e-07,93245.0,93244.0,0.7472551]
[1745503698133,1e-07,93245.0,93244.0,0.9972551]
[1745503698630,1e-07,93245.0,93244.0,0.7472551]
[1745503699133,1e-07,93245.0,93244.0,0.5752551]
[1745503699928,0.1072101,93245.0,93244.0,0.4680111]
[1745503700427,0.1072101,93245.0,93244.0,0.3608]
[1745503700835,0.1072101,93245.0,93244.0,0.4680111]
[1745503701029,0.1972101,93245.0,93244.0,0.3608]
[1745503701330,0.1972101,93245.0,93244.0,0.4680111]
[1745503702232,0.1972101,93245.0,93244.0,0.1072111]
[1745503702821,0.1072134,93242.0,93241.0,0.053607]
[1745503703021,0.1072272,93235.0,93234.0,0.1608251]
[1745503703627,0.46264,93260.0,93239.0,0.0536079]
[1745503703925,0.1436035,93248.0,93244.0,0.1072111]
[1745503704119,0.1072101,93245.0,93244.0,0.1971111]
[1745503704527,0.1072101,93245.0,93244.0,0.0899]
[1745503704827,0.1072203,93237.0,93236.0,0.1072196]
[1745503705033,0.1072203,93236.0,93235.0,0.3608]
[1745503705223,0.1918203,93236.0,93235.0,0.4680215]
[1745503705428,0.1918203,93236.0,93235.0,0.3608]
[1745503706034,0.160847,93228.0,93227.0,0.1072301]
[1745503706424,0.334947,93228.0,93227.0,0.1072301]
[1745503706934,0.2277152,93228.0,93226.0,0.1796]
[1745503707227,0.1072318,93226.0,93225.0,0.10884185]
[1745503707534,0.1072318,93226.0,93225.0,0.00160885]
[1745503708228,0.1072318,93226.0,93225.0,0.10884185]
[1745503708229,0.2868318,93226.0,93225.0,0.10884185]
[1745503709628,0.0901,93226.0,93225.0,0.10884185]
[1745503709836,0.3608,93235.0,93234.0,0.1072226]
[1745503710133,0.3608,93254.0,93243.0,0.1072123]
[1745503710436,0.0841,93253.0,93252.0,0.1072019]
[1745503710932,0.1913008,93253.0,93252.0,0.1072019]
[1745503712030,0.1913008,93253.0,93252.0,0.1991019]
[1745503712335,0.0536043,93247.0,93242.0,0.0536065]
[1745503712535,0.1072111,93244.0,93243.0,0.4680117]
[1745503713330,0.1072111,93244.0,93243.0,0.1072117]
[1745503714728,0.2274049,93246.0,93233.0,0.3608]
[1745503714729,0.1738,93246.0,93233.0,0.3608]
[1745503714928,0.1608321,93236.0,93235.0,0.160825]
[1745503715130,0.0536106,93236.0,93233.0,0.3608]
[1745503715332,0.1072226,93234.0,93233.0,0.5216342]
[1745503715627,0.1072226,93234.0,93233.0,0.4996116]
[1745503715837,0.2827226,93234.0,93233.0,0.4996116]
[1745503716037,0.2827226,93234.0,93233.0,0.4144116]
[1745503716239,0.2827226,93234.0,93233.0,0.0536116]
[1745503716533,0.1072295,93228.0,93227.0,0.1924263]
[1745503716930,0.1072295,93228.0,93227.0,0.0852]
[1745503717229,0.1072318,93226.0,93225.0,0.10884125]
[1745503717831,0.2839318,93226.0,93225.0,0.10884125]
[1745503720941,0.10184,93243.0,93225.0,0.10884125]
[1745503720942,0.3608,93234.0,93225.0,0.00160885]
[1745503721139,0.1072189,93238.0,93237.0,0.160826]
[1745503721445,0.1072189,93238.0,93237.0,0.53749345]
[1745503722047,0.1072189,93238.0,93237.0,0.160826]
[1745503722844,0.1072203,93236.0,93235.0,0.0846]
[1745503723047,0.1072284,93229.0,93228.0,0.3608]
[1745503723249,0.1072284,93229.0,93228.0,0.4680295]
[1745503723545,0.1072318,93226.0,93220.0,0.0107329]
[1745503723748,0.1072318,93226.0,93225.0,0.10884185]
[1745503723946,0.1608746,93212.0,93211.0,0.0536245]
[1745503724353,0.1608746,93212.0,93211.0,0.06433434]
[1745503725355,0.0536235,93213.0,93212.0,0.1608691]
[1745503725947,0.0536235,93213.0,93212.0,0.2530691]
[1745503726147,0.3389673,93215.0,93214.0,0.1072456]
[1745503726446,0.2317223,93215.0,93214.0,0.1072456]
[1745503727145,0.1781,93215.0,93214.0,0.1072456]
[1745503727843,0.0862,93215.0,93214.0,0.1072456]
[1745503731545,0.0862,93215.0,93209.0,0.3608]
[1745503731751,0.1072537,93207.0,93197.0,0.4144325]
[1745503731949,0.4680537,93207.0,93204.0,0.1072563]
[1745503732142,0.4680537,93207.0,93206.0,0.11011769]
[1745503732341,0.4680537,93207.0,93206.0,0.1207628]
[1745503732550,0.4680537,93207.0,93206.0,0.11011769]
[1745503732747,0.3608,93207.0,93206.0,0.11011769]
[1745503733348,0.0536229,93214.0,93206.0,0.11011769]
[1745503733349,0.1072414,93219.0,93218.0,0.1072399]
[1745503733550,0.1982414,93219.0,93218.0,0.1072399]
[1745503733749,0.0536223,93215.0,93211.0,0.0536235]
[1745503733950,0.1446228,93214.0,93213.0,0.1072456]
[1745503734149,0.091,93214.0,93213.0,0.1072456]
[1745503734550,0.1982456,93214.0,93213.0,0.1072456]
[1745503735657,0.1982456,93214.0,93213.0,0.1931456]
[1745503737146,0.091,93214.0,93206.0,0.36366289]
[1745503737359,0.1072537,93207.0,93206.0,0.00286289]
[1745503737854,0.1072698,93193.0,93191.0,0.01082062]
[1745503738251,0.1072698,93193.0,93189.0,0.1072741]
[1745503738454,0.1072698,93193.0,93186.0,0.1072774]
[1745503738650,0.1072698,93193.0,93184.0,0.1387398]
[1745503738851,0.2879698,93193.0,93184.0,0.1387398]
[1745503739051,0.2879698,93193.0,93185.0,0.1072783]
[1745503739252,0.2879698,93193.0,93185.0,0.1072788]
[1745503739450,0.2879698,93193.0,93186.0,0.1072776]
[1745503739857,0.3952738,93193.0,93176.0,0.00107323]
[1745503740058,0.1072871,93179.0,93178.0,0.1072864]
[1745503740451,0.0921,93179.0,93178.0,0.11788774]
[1745503740653,0.1072762,93192.0,93191.0,0.107271]
[1745503740852,0.0536314,93200.0,93199.0,0.1072629]
[1745503741059,0.1072644,93202.0,93201.0,0.1608881]
[1745503741257,0.0536305,93202.0,93188.0,0.1072749]
[1745503741552,0.107271,93192.0,93191.0,0.0847]
[1745503741758,0.468071,93192.0,93191.0,0.0847]
[1745503741960,0.468071,93192.0,93191.0,0.1919721]
[1745503742145,0.107271,93192.0,93191.0,0.1919721]
[1745503742345,0.282971,93192.0,93191.0,0.1919721]
[1745503742650,0.0536388,93187.0,93184.0,0.0536397]
[1745503742851,0.0536396,93185.0,93184.0,0.0847]
[1745503743056,0.0536396,93185.0,93184.0,0.1919802]
[1745503743559,0.0536377,93189.0,93188.0,0.0536373]
[1745503743863,0.0536377,93189.0,93188.0,0.1361373]
[1745503744156,0.0536377,93189.0,93188.0,0.0825]
[1745503744561,0.0536377,93189.0,93188.0,0.1897756]
[1745503744765,0.1440377,93189.0,93188.0,0.1897756]
[1745503745056,0.2316377,93189.0,93188.0,0.1897756]
[1745503745952,0.1440377,93189.0,93188.0,0.1897756]
[1745503746354,0.0536377,93189.0,93188.0,0.1897756]
[1745503747267,0.160906,93194.0,93190.0,0.0536366]
[1745503747460,0.160906,93194.0,93193.0,0.1072698]
[1745503748966,0.3608,93207.0,93191.0,0.089]
[1745503749162,0.1608949,93202.0,93201.0,0.1072552]
[1745503750177,0.443,93207.0,93192.0,0.0844]
[1745503750370,0.03028611,104240.0,93216.0,0.0536212]
[1745503750371,0.09768,93220.0,93216.0,0.0536212]
[1745503750569,0.1399204,93220.0,93219.0,0.1072399]
[1745503751074,0.05522827,93222.0,93219.0,0.1072399]
[1745503751075,0.00161007,93222.0,93219.0,0.0536194]
[1745503751273,0.10884817,93222.0,93221.0,0.1072376]
[1745503752579,0.1072381,93222.0,93221.0,0.1072376]
[1745503752779,0.1901381,93222.0,93220.0,0.0821]
[1745503753083,0.0536306,93202.0,93201.0,0.0536292]
[1745503753374,0.053628,93205.0,93202.0,0.0536292]
[1745503753580,0.053628,93205.0,93204.0,0.1072571]
[1745503754485,0.1072544,93207.0,93206.0,0.1072537]
[1745503754671,0.1901544,93207.0,93206.0,0.1072537]
[1745503754872,0.1901544,93207.0,93206.0,0.2814537]
[1745503755174,0.1072544,93207.0,93206.0,0.2814537]
[1745503755482,0.1072436,93216.0,93215.0,0.1072433]
[1745503755674,0.1608746,93212.0,93211.0,0.0536242]
[1745503755875,0.1608746,93212.0,93209.0,0.0536251]
[1745503755876,0.1072502,93210.0,93209.0,0.0536251]
[1745503757282,0.1072502,93210.0,93202.0,0.0536294]
[1745503757283,0.160885,93206.0,93205.0,0.107256]
[1745503757576,0.1361252,93210.0,93198.0,0.0536319]
[1745503757577,0.0536298,93202.0,93198.0,0.0536319]
[1745503757880,0.1072664,93196.0,93195.0,0.3608]
[1745503758184,0.1072687,93194.0,93193.0,0.1072698]
[1745503758377,0.1072744,93190.0,93189.0,0.1609112]
[1745503758771,0.1072744,93190.0,93189.0,0.06433597]
[1745503759173,0.1072744,93190.0,93189.0,0.0536371]
[1745503759683,0.1072744,93190.0,93188.0,0.01084079]
[1745503759684,0.1072871,93181.0,93180.0,0.160923]
[1745503761173,0.0536411,93183.0,93182.0,0.1072825]
[1745503761676,0.0536358,93194.0,93193.0,0.1072698]
[1745503761881,0.0536358,93194.0,93178.0,0.06450335]
[1745503761882,0.0536323,93198.0,93197.0,0.1072652]
[1745503762074,0.053628,93206.0,93205.0,0.107256]
[1745503762783,0.3608,93212.0,93209.0,0.0536253]
[1745503762975,0.1072369,93222.0,93221.0,0.0536184]
[1745503763175,0.1072369,93222.0,93221.0,0.1608537]
[1745503763581,0.1072456,93214.0,93213.0,0.0883]
[1745503763780,0.1072456,93214.0,93213.0,0.1955468]
[1745503764183,0.1072514,93209.0,93208.0,0.0536261]
[1745503764383,0.1072514,93209.0,93208.0,0.0697012]
[1745503764583,0.1072514,93209.0,93208.0,0.06970133]
[1745503764986,0.1072514,93209.0,93208.0,0.18050214]
[1745503766782,0.1072514,93209.0,93208.0,0.17714908]
[1745503767992,0.1072514,93209.0,93208.0,0.06990028]
[1745503768288,0.1072514,93209.0,93208.0,0.01627418]
[1745503768488,0.0536249,93211.0,93197.0,0.3608]
[1745503768489,0.1608863,93206.0,93205.0,0.053627]
[1745503768685,0.1608863,93206.0,93205.0,0.06916487]
[1745503769090,0.0536284,93205.0,93202.0,0.0536297]
[1745503769281,0.1072583,93203.0,93202.0,0.0536297]
[1745503770089,0.1413284,93205.0,93204.0,0.1072571]
[1745503770596,0.1072459,93217.0,93216.0,0.1072407]
[1745503770789,0.3608,93225.0,93224.0,0.1072341]
[1745503771091,0.0875,93236.0,93231.0,0.1072256]
[1745503771283,0.0875,93236.0,93217.0,0.053621]
[1745503771589,0.1072399,93219.0,93218.0,0.12268269]
[1745503771896,0.1608569,93221.0,93220.0,0.1072376]
[1745503772088,0.1608569,93221.0,93220.0,0.12268099]
[1745503772281,0.1608569,93221.0,93220.0,0.01544339]
[1745503772483,0.1072359,93223.0,93222.0,0.0536178]
[1745503772687,0.1072376,93221.0,93220.0,0.00335259]
[1745503772888,0.1072376,93221.0,93220.0,0.01887621]
[1745503773191,0.1072376,93221.0,93220.0,0.00335259]
[1745503773389,0.1900376,93221.0,93220.0,0.00335259]
[1745503774389,0.1072502,93210.0,93209.0,0.0536256]
[1745503775390,0.1932502,93210.0,93209.0,0.0536256]
[1745503775991,0.1932502,93210.0,93209.0,0.1412256]
[1745503777292,0.1072502,93210.0,93209.0,0.1412256]
[1745503778698,0.1072502,93210.0,93209.0,0.0876]
[1745503779791,0.1072502,93210.0,93209.0,0.1948514]
[1745503781194,0.0865,93215.0,93214.0,0.1072456]
[1745503781397,0.1072348,93226.0,93225.0,0.107233]
[1745503781597,0.1905348,93226.0,93225.0,0.107233]
[1745503781795,0.1608638,93220.0,93219.0,0.1072346]
[1745503781996,0.107241,93218.0,93217.0,0.1729]
[1745503782196,0.468041,93218.0,93217.0,0.1729]
[1745503782393,0.1072502,93210.0,93209.0,0.3608]
[1745503782592,0.1608881,93206.0,93203.0,0.01050526]
[1745503782797,0.1072574,93206.0,93205.0,0.1608798]
[1745503783099,0.9144209,93218.0,93203.0,0.3608]
[1745503783304,0.1608699,93216.0,93215.0,0.1608639]
[1745503783499,0.0536225,93216.0,93215.0,0.1608639]
[1745503783700,0.0536225,93216.0,93215.0,0.3271639]
[1745503784204,0.6608635,93218.0,93217.0,0.1072422]
[1745503784399,0.1608635,93218.0,93217.0,0.1072422]
[1745503785197,0.1072433,93216.0,93215.0,0.2199217]
[1745503786305,0.1072433,93216.0,93215.0,0.23567957]
[1745503788305,0.1072433,93216.0,93215.0,0.1663]
[1745503788608,0.1072433,93216.0,93215.0,0.2735445]
[1745503789798,0.053621,93218.0,93215.0,0.2735445]
[1745503789799,0.0875,93219.0,93216.0,0.0536212]
[1745503790004,0.1947422,93219.0,93218.0,0.107241]
[1745503790306,0.0831,93234.0,93226.0,0.1072318]
[1745503790606,0.0869,93233.0,93226.0,0.1072318]
[1745503790908,0.0536142,93229.0,93226.0,0.1072318]
[1745503791111,0.107233,93225.0,93224.0,0.1608484]
[1745503791405,0.107233,93225.0,93224.0,0.1395166]
[1745503792899,0.0011,93237.0,93232.0,0.0536111]
[1745503793094,0.1619322,93237.0,93236.0,0.1072203]
[1745503793296,0.1619322,93237.0,93236.0,0.01578618]
[1745503793499,0.1619322,93237.0,93236.0,0.01913833]
[1745503794008,0.1619322,93237.0,93236.0,0.12635863]
[1745503794197,0.2447322,93237.0,93236.0,0.12635863]
[1745503794397,0.2447322,93237.0,93236.0,0.01913833]
[1745503794601,0.2467322,93237.0,93236.0,0.01913833]
[1745503795808,0.6075322,93237.0,93236.0,0.01913833]
[1745503796000,0.6075322,93237.0,93236.0,0.0299815]
[1745503796603,0.6075322,93237.0,93236.0,0.01913833]
[1745503796910,0.6075322,93237.0,93236.0,0.01912351]
[1745503797701,1.1075322,93237.0,93236.0,0.01912351]
[1745503798009,1.1075322,93237.0,93236.0,0.01577136]
[1745503798213,1.053956,93237.0,93211.0,0.0536241]
[1745503798406,0.0536226,93215.0,93214.0,0.1072456]
[1745503798608,0.0536226,93215.0,93214.0,0.0156431]
[1745503798812,0.0536226,93215.0,93214.0,0.0263014]
[1745503799106,0.0536226,93215.0,93214.0,0.0106583]
[1745503799312,0.1072456,93214.0,93213.0,0.1072465]
[1745503800000,0.1072456,93214.0,93213.0,0.11781236]
[1745503800605,0.1891456,93214.0,93213.0,0.11781236]
[1745503800805,0.5499456,93214.0,93213.0,0.01056586]
[1745503801105,0.1072468,93213.0,93212.0,0.1072478]
[1745503801414,0.1072468,93213.0,93212.0,0.12603497]
[1745503801600,0.1072468,93213.0,93212.0,0.13656751]
[1745503801806,0.1072468,93213.0,93212.0,0.02931971]
[1745503802007,0.1892468,93213.0,93212.0,0.02931971]
[1745503802209,0.1892468,93213.0,93212.0,0.01388548]
[1745503802512,0.1072698,93193.0,93179.0,0.0536428]
[1745503802705,0.1072698,93193.0,93181.0,0.3608]
[1745503802911,0.4680698,93193.0,93181.0,0.4680835]
[1745503803099,0.4680698,93193.0,93181.0,0.3608]
[1745503803301,0.9680698,93193.0,93180.0,0.00792587]
[1745503803505,0.9680698,93193.0,93181.0,0.1072835]
[1745503803705,0.9680698,93193.0,93182.0,0.01093512]
[1745503803906,0.9680698,93193.0,93181.0,0.1072835]
[1745503804505,0.9680698,93193.0,93180.0,0.01879111]
[1745503804713,0.1072767,93187.0,93186.0,0.16138528]
[1745503805111,0.0536416,93182.0,93176.0,0.00107323]
[1745503805407,0.1072963,93170.0,93162.0,0.1073045]
[1745503805611,0.1993363,93170.0,93161.0,0.0902]
[1745503805811,0.1993363,93170.0,93164.0,0.1073028]
[1745503806005,0.1993363,93170.0,93160.0,0.3227136]
[1745503806205,0.3626363,93170.0,93160.0,0.3227136]
[1745503807311,0.3626363,93170.0,93161.0,0.0902]
[1745503807511,0.8626363,93170.0,93163.0,0.1073039]
[1745503807915,0.8626363,93170.0,93162.0,0.107305]
[1745503808106,0.8626363,93170.0,93169.0,0.27184381]
[1745503808413,0.1073067,93161.0,93160.0,0.3227136]
[1745503808615,0.1073228,93147.0,93138.0,0.1073328]
[1745503808912,0.09208,93147.0,93139.0,0.0878]
[1745503809217,0.1994028,93147.0,93139.0,0.0878]
[1745503809418,0.1994028,93147.0,93141.0,0.0536647]
[1745503809609,0.2842028,93147.0,93143.0,0.1073273]
[1745503809917,0.3656028,93147.0,93141.0,0.1073293]
[1745503810115,0.25828,93147.0,93146.0,0.10839748]
[1745503810318,0.2842028,93147.0,93146.0,0.00107358]
[1745503810717,0.1921228,93147.0,93146.0,0.00107358]
[1745503810917,0.2735228,93147.0,93146.0,0.00107358]
[1745503811116,0.1073401,93132.0,93128.0,0.01075038]
[1745503811509,0.1610084,93134.0,93133.0,0.1073389]
[1745503811814,0.3608,93138.0,93137.0,0.1073343]
[1745503812112,0.4681332,93138.0,93137.0,0.1073343]
[1745503812811,0.0814,93147.0,93146.0,0.1073239]
[1745503813008,0.1073274,93145.0,93144.0,0.1073252]
[1745503813205,0.1073274,93143.0,93142.0,0.0536638]
[1745503813607,0.0536622,93146.0,93143.0,0.0536635]
[1745503813808,0.0536622,93146.0,93143.0,0.1073273]
[1745503814004,0.1457422,93146.0,93140.0,0.0536652]
[1745503814313,0.1073297,93142.0,93141.0,0.2783292]
[1745503814618,0.1073256,93146.0,93145.0,0.0536624]
[1745503814821,0.1073268,93144.0,93143.0,0.1073265]
[1745503815018,0.1073274,93143.0,93142.0,0.002]
[1745503815321,0.1073308,93141.0,93140.0,0.001]
[1745503815613,0.4681308,93141.0,93140.0,0.001]
[1745503815913,0.5630508,93141.0,93140.0,0.00435588]
[1745503816105,0.6704148,93141.0,93140.0,0.00435588]
[1745503816310,0.0536694,93134.0,93121.0,0.1073521]
[1745503816511,0.0536756,93123.0,93116.0,0.00107392]
[1745503816812,0.1073539,93120.0,93116.0,0.00107392]
[1745503817011,0.0536779,93119.0,93100.0,0.1]
[1745503817211,0.09492,93122.0,93100.0,0.1]
[1745503817212,0.1073758,93101.0,93100.0,0.1]
[1745503817416,0.5630958,93101.0,93100.0,0.1]
[1745503817816,0.09492,93101.0,93100.0,0.207377]
[1745503818018,0.4144819,93112.0,93100.0,0.207377]
[1745503818019,0.3608,93112.0,93111.0,0.1073643]
[1745503818320,0.09492,93118.0,93111.0,0.3608]
[1745503818517,0.1073601,93115.0,93112.0,0.1747]
[1745503818725,0.1073604,93115.0,93114.0,0.1073608]
[1745503819023,0.107362,93114.0,93113.0,0.1073615]
[1745503819210,0.107362,93114.0,93113.0,0.2820615]
[1745503820218,0.107362,93114.0,93113.0,0.1747]
[1745503820416,0.107362,93114.0,93113.0,0.282062]
[1745503820623,0.107362,93114.0,93113.0,0.1747]
[1745503821117,0.107362,93114.0,93113.0,0.0851]
[1745503821319,0.109362,93114.0,93113.0,0.0851]
[1745503822020,0.111362,93114.0,93113.0,0.0851]
[1745503822216,0.1073758,93101.0,93100.0,0.1]
[1745503822423,0.4681758,93101.0,93100.0,0.1]
[1745503823822,0.9681758,93101.0,93100.0,0.1]
[1745503824018,0.1073989,93081.0,93071.0,0.3608]
[1745503824219,0.1074081,93073.0,93072.0,0.0817]
[1745503825514,0.1904081,93073.0,93072.0,0.0877]
[1745503826121,0.1074173,93065.0,93064.0,0.0873]
[1745503826317,0.1074173,93065.0,93064.0,0.169]
[1745503827225,0.1074173,93065.0,93064.0,0.0817]
[1745503827526,0.1084173,93065.0,93064.0,0.0907]
[1745503828239,0.1084173,93065.0,93064.0,0.181]
[1745503828420,0.001,93065.0,93064.0,0.6492185]
[1745503828620,0.6084173,93065.0,93064.0,0.181]
[1745503829926,0.1084173,93065.0,93064.0,0.181]
[1745503830315,0.4692173,93065.0,93064.0,0.0907]
[1745503830515,0.4692173,93065.0,93064.0,0.009]
[1745503830722,0.5541173,93065.0,93064.0,0.009]
[1745503830918,0.5541173,93065.0,93056.0,0.00107462]
[1745503830919,0.1074266,93057.0,93056.0,0.00107462]
[1745503831229,0.5631866,93057.0,93056.0,0.00107462]
[1745503831930,0.4682266,93057.0,93056.0,0.00107462]
[1745503833333,0.4712266,93057.0,93056.0,0.00307462]
[1745503833633,0.4712266,93057.0,93056.0,0.00607462]
[1745503833833,0.9712266,93057.0,93056.0,0.00607462]
[1745503834025,0.9682266,93057.0,93056.0,0.00407462]
[1745503834225,0.9692266,93057.0,93056.0,0.00607462]
[1745503835830,1.0766866,93057.0,93056.0,0.00607462]
[1745503837032,0.1074531,93034.0,93032.0,0.3608]
[1745503837329,0.1074531,93034.0,93033.0,0.1649]
[1745503837536,0.4682531,93034.0,93033.0,0.1649]
[1745503837736,0.4682531,93034.0,93033.0,0.0842]
[1745503837933,0.4682531,93034.0,93026.0,0.00107496]
[1745503837934,0.1074612,93027.0,93026.0,0.00107496]
[1745503838132,0.0876,93033.0,93032.0,0.1074554]
[1745503838330,0.005,93034.0,93033.0,0.1074543]
[1745503838530,0.1124531,93034.0,93033.0,0.1074543]
[1745503838734,0.1074543,93033.0,93032.0,0.0844]
[1745503838932,0.4682543,93033.0,93032.0,0.0844]
[1745503839130,0.5558543,93033.0,93032.0,0.0844]
[1745503839630,0.1074612,93027.0,93026.0,0.00107496]
[1745503840444,0.0876,93028.0,93026.0,0.00107496]
[1745503840631,0.8608,93033.0,93032.0,0.1074554]
[1745503840830,0.9682543,93033.0,93032.0,0.1074554]
[1745503841540,0.1074543,93033.0,93032.0,0.1074554]
[1745503841934,0.1074554,93032.0,93031.0,0.0839]
[1745503842336,0.1074554,93032.0,93031.0,0.1913566]
[1745503842846,0.053727,93034.0,93033.0,0.1074543]
[1745503843033,0.0537134,93057.0,93033.0,0.0537266]
[1745503843242,0.468248,93040.0,93039.0,0.1074474]
[1745503843938,0.468248,93040.0,93037.0,0.1709]
[1745503844136,0.1074485,93038.0,93037.0,0.1709]
[1745503844639,0.1074485,93038.0,93037.0,0.0831]
[1745503845528,0.1084485,93038.0,93037.0,0.0831]
[1745503846231,0.1074612,93027.0,93026.0,0.00107496]
[1745503846433,0.5633012,93027.0,93026.0,0.00107496]
[1745503847646,1.0643012,93027.0,93026.0,0.00107496]
[1745503848240,0.7035012,93027.0,93026.0,0.00107496]
[1745503848538,0.7035012,93027.0,93026.0,0.09037496]
[1745503848737,0.2035012,93027.0,93026.0,0.09037496]
[1745503849335,0.2045012,93027.0,93026.0,0.09237496]
[1745503849740,0.2045012,93027.0,93026.0,0.00307496]
[1745503849941,0.7045012,93027.0,93026.0,0.00307496]
[1745503850241,0.7035012,93027.0,93026.0,0.00307496]
[1745503850541,0.7871012,93027.0,93026.0,0.00107496]
[1745503851135,0.1074739,93016.0,93005.0,0.1074859]
[1745503851336,0.1074739,93016.0,93008.0,0.09891117]
[1745503851747,0.1074739,93016.0,93008.0,0.20639397]
[1745503851943,0.1074739,93016.0,93008.0,0.09891117]
[1745503852349,0.1074739,93016.0,93008.0,0.088]
[1745503852642,0.1084739,93016.0,93008.0,0.088]
[1745503853046,0.1084739,93016.0,93008.0,0.09880561]
[1745503853345,0.6094739,93016.0,93008.0,0.09880561]
[1745503853842,0.6094739,93016.0,93008.0,0.088]
[1745503854039,0.6084739,93016.0,93008.0,0.088]
[1745503854237,0.6104739,93016.0,93008.0,0.088]
[1745503855041,0.6104739,93016.0,93013.0,0.0537382]
[1745503855246,0.7055139,93016.0,93014.0,0.0872]
[1745503855941,0.7055139,93016.0,93004.0,0.0817]
[1745503856347,0.7055139,93016.0,93005.0,0.0872]
[1745503856746,0.7055139,93016.0,93005.0,0.1946866]
[1745503857240,0.7055139,93016.0,93006.0,0.1074851]
[1745503857647,0.7055139,93016.0,93005.0,0.1946858]
[1745503857834,0.7055139,93016.0,93005.0,0.0872]
[1745503858033,0.7055139,93016.0,93007.0,0.053742]
[1745503859039,0.7055139,93016.0,93005.0,0.1409431]
[1745503859545,0.7055139,93016.0,93007.0,0.1074842]
[1745503860240,0.7055139,93016.0,93008.0,0.1074829]
[1745503860449,0.7055139,93016.0,93009.0,0.087]
[1745503860652,0.7055139,93016.0,93015.0,0.11285055]
[1745503860943,0.003,93016.0,93015.0,0.11285055]
[1745503861149,0.2055139,93016.0,93015.0,0.00537545]
[1745503861346,0.2055139,93016.0,93015.0,0.17777545]
[1745503861540,0.2055139,93016.0,93015.0,0.09077545]
[1745503861741,0.2055139,93016.0,93015.0,0.00537545]